{"text_format":"1","workbook":"xlsx","n_sheets":9,"sheets":["Form 120P-WA-EMF","Multiple Sites","Option to Assign Payment","HVAC & Water Heating Equipment","Eligible Spaces","Foodservice Equipment","Weatherization","Admin Tools","Lookups"],"not_rendered":{"charts":0,"images":11,"macros":1,"external_links":1,"defined_names":26,"comments":0,"pivot_tables":0},"unopened":[],"bounds":{"document_bytes":16777216,"sheet_cells":100000,"rows_first":2000,"rows_last":500,"rows_between":2000,"halvings":0,"cell_chars":16384,"cell_head_chars":4096},"cells_cut":0,"cells_raw":0,"read":"whole","date_system":"1900"}

{"sheet":"Form 120P-WA-EMF","index":0,"n_rows":74,"n_cols":43,"rows_kept":74,"cut":false,"hidden":false,"merged":[[55,11,55,14],[57,11,57,14],[61,1,61,38],[62,2,62,38],[64,2,64,15],[64,17,64,32],[64,34,64,37],[55,1,55,6],[55,7,55,9],[57,1,57,6],[57,7,57,9],[59,1,59,6],[59,7,59,9],[40,21,40,26],[40,27,40,38],[53,1,53,38],[47,1,47,19],[49,1,49,8],[49,9,49,12],[49,13,49,14],[49,16,49,19],[49,30,49,38],[51,1,51,9],[51,11,51,19],[51,30,51,38],[52,1,52,9],[52,11,52,18],[9,21,9,23],[9,24,9,29],[9,30,9,32],[9,33,9,38],[13,21,13,38],[68,1,68,38],[69,1,69,30],[71,1,71,27],[71,28,71,38],[16,21,16,38],[43,21,43,24],[43,25,43,38],[19,21,19,29],[19,31,19,38],[22,21,22,28],[22,29,22,32],[22,33,22,34],[22,36,22,38],[25,21,25,28],[25,30,25,38],[34,21,34,38]]}
[]
[null,"Existing Multifamily Standard Incentives - NW Natural Washington"]
[null,"Commercial Buildings | Incentive Application | Form 120P-WA-EMF"]
[]
[null,"To be completed by Participant"]
[]
[null,"TRC is a Program Management Contractor for Energy Trust of Oregon."]
[]
[null,null,null,null,null,null,null,null,null,null,null,null,null,null,null,null,null,null,null,null,null,"Program Use Only",null,null,null,null,null,null,null,null,null,null,null,null,null,null,null,null,{"$f":"Version","v":"v2024.2"}]
[null,null,null,null,null,null,null,null,null,null,null,null,null,null,null,null,null,null,null,null,null,"Reference ID",null,null,null,null,null,null,null,null,"PT ID"]
[]
[null,null,null,null,null,null,null,null,null,null,null,null,null,null,null,null,null,null,null,null,null,"Participant Information"]
[]
[null,null,null,null,null,null,null,null,null,null,null,null,null,null,null,null,null,null,null,null,null," "]
[null,null,null,null,null,null,null,null,null,null,null,null,null,null,null,null,null,null,null,null,null,"Legal Business Name (must match Participant's submitted W-9)"]
[]
[]
[null,null,null,null,null,null,null,null,null,null,null,null,null,null,null,null,null,null,null,null,null,"Assumed Business Name or DBA"]
[]
[]
[null,null,null,null,null,null,null,null,null,null,null,null,null,null,null,null,null,null,null,null,null,"Contact Name",null,null,null,null,null,null,null,null,null,"Title"]
[]
[]
[null,null,null,null,null,null,null,null,null,null,null,null,null,null,null,null,null,null,null,null,null,"Participant Mailing Address",null,null,null,null,null,null,null,"City",null,null,null,"State",null,null,"Zip"]
[]
[]
[null,null,null,null,null,null,null,null,null,null,null,null,null,null,null,null,null,null,null,null,null,"Primary Phone",null,null,null,null,null,null,null,null,"Email Address"]
[]
[null,null,null,null,null,null,null,null,null,null,null,null,null,null,null,null,null,null,null,null,null,"Business Type:",null,null,null,null,null,null,null,null,null,null,null,null,null,null,null,null,null,null,null,0]
[null,null,null,null,null,null,null,null,null,null,null,null,null,null,null,null,null,null,null,null,null,"Participant Role:",null,null,null,null,null,null,null,null,null,null,null,null,null,null,null,null,null,null,null,0]
[null,null,null,null,null,null,null,null,null,null,null,null,null,null,null,null,null,null,null,null,null,"Existing Multifamily Project Type"]
[]
[]
[]
[]
[null,null,null,null,null,null,null,null,null,null,null,null,null,null,null,null,null,null,null,null,null,"Trade Ally/Contractor/Installer Company Name (if applicable)"]
[]
[null,null,null,null,null,null,null,null,null,null,null,null,null,null,null,null,null,null,null,null,null,"Utility Information "]
[]
[null,null,null,null,null,null,null,null,null,null,null,null,null,null,null,null,null,null,null,null,null,"(You must attach a copy of your most recent utility bill)"]
[null,null,null,null,null,null,null,null,null,null,null,null,null,null,null,null,null,null,null,null,null,"NW Natural Account #:"]
[]
[]
[null,null,null,null,null,null,null,null,null,null,null,null,null,null,null,null,null,null,null,null,null,"Rate Schedule:"]
[]
[]
[]
[null,"Project and Facility Information",null,null,null,null,null,null,null,null,null,null,null,null,null,null,null,null,null,null,null,"Primary Heating Fuel Source"]
[]
[null,null,null,null,null,null,null,null,null,null,null,null,null,null,null,null,null,null,null,null,null,null,null,null,null,null,null,null,null,null,null,null,null,null,null,null,null,null,null,null,null,0,{"$f":"VLOOKUP($AP50,Fuel,2)","v":"None"}]
[null,"Site Address",null,null,null,null,null,null,null,"City",null,null,null,"State",null,null,"Zip",null,null,null,null,"Water Heating Fuel Source"]
[null,null,null,null,null,null,null,null,null,null,null,null,null,null,null,null,null,null,null,null,null,null,null,null,null,null,null,null,null,null,null,null,null,null,null,null,null,null,null,null,null,0,{"$f":"VLOOKUP($AP52,Fuel,2)","v":"None"}]
[null,"Contact name for Site Visit",null,null,null,null,null,null,null,null,null,"Phone number for Site Visit"]
[null,"If requesting incentives for multiple locations,use the Multiple SItes section to list each location's site address, utility infomation, and heating fuel sources"]
[]
[null,"Project Square Footage",null,null,null,null,null,null,null,null,null,"Market Type:"]
[]
[null,"Building Square Footage",null,null,null,null,null,null,null,null,null,"Buidling Style:"]
[]
[null,"Year Built"]
[]
[null,"Participant Signature"]
[]
[]
[null,null,null,null,null,null,null,null,null,null,null,null,null,null,null,null,null,{"$f":"IF(ContactName=\"\",\"\",ContactName)","v":""}]
[null,null,"Authorized Representative Signature",null,null,null,null,null,null,null,null,null,null,null,null,null,null," Name (printed)",null,null,null,null,null,null,null,null,null,null,null,null,null,null,null,null,"Date"]
[]
[]
[null,"Grant Funding"]
[null,"Did you receive any other external funding, such as grants, that reduced your final out-of-pocket purchase/installation costs for any energy saving equipment listed in this application (See Project Cost Documentation for more information)?"]
[]
[null,"If yes, what is the total amount of external funding, Include additional information with submitted invoices."]
[]
[null,"TERMS AND CONDITIONS"]

{"sheet":"Multiple Sites","index":1,"n_rows":113,"n_cols":12,"rows_kept":113,"cut":false,"hidden":false,"merged":[]}
[]
["Existing Multifamily Standard Incentives - NW Natural Washington"]
["Commercial Buildings | Incentive Application | Form 120P-WA-EMF"]
[]
["To be completed by Participant"]
[]
["TRC is a Program Management Contractor for Energy Trust of Oregon.",null,null,null,null,null,null,null,"Program Use Only",null,null,{"$f":"Version","v":"v2024.2"}]
[null,null,null,null,null,null,null,null,"Reference ID",{"$f":"IF(ReferenceID=\"\",\"\",ReferenceID)","v":""},"PT ID",{"$f":"IF(PTID=\"\",\"\",PTID)","v":""}]
["Multiple Sites"]
["Location\n(Bldg Name / Store #)","Site Address","City","State","Zip","Electric Utility","Electric Account Number","Gas Utility","Gas Account Number","Gas Rate Schedule","Primary Heating \nFuel Source","Water Heating \nFuel Source"]
[null,null,null,null,null,"(select)",null,"(select)",null,null,"(select)","(select)"]
[null,null,null,null,null,"(select)",null,"(select)",null,null,"(select)","(select)"]
[null,null,null,null,null,"(select)",null,"(select)",null,null,"(select)","(select)"]
[null,null,null,null,null,"(select)",null,"(select)",null,null,"(select)","(select)"]
[null,null,null,null,null,"(select)",null,"(select)",null,null,"(select)","(select)"]
[null,null,null,null,null,"(select)",null,"(select)",null,null,"(select)","(select)"]
[null,null,null,null,null,"(select)",null,"(select)",null,null,"(select)","(select)"]
[null,null,null,null,null,"(select)",null,"(select)",null,null,"(select)","(select)"]
[null,null,null,null,null,"(select)",null,"(select)",null,null,"(select)","(select)"]
[null,null,null,null,null,"(select)",null,"(select)",null,null,"(select)","(select)"]
[null,null,null,null,null,"(select)",null,"(select)",null,null,"(select)","(select)"]
[null,null,null,null,null,"(select)",null,"(select)",null,null,"(select)","(select)"]
[null,null,null,null,null,"(select)",null,"(select)",null,null,"(select)","(select)"]
[null,null,null,null,null,"(select)",null,"(select)",null,null,"(select)","(select)"]
[null,null,null,null,null,"(select)",null,"(select)",null,null,"(select)","(select)"]
[null,null,null,null,null,"(select)",null,"(select)",null,null,"(select)","(select)"]
[null,null,null,null,null,"(select)",null,"(select)",null,null,"(select)","(select)"]
[null,null,null,null,null,"(select)",null,"(select)",null,null,"(select)","(select)"]
[null,null,null,null,null,"(select)",null,"(select)",null,null,"(select)","(select)"]
[null,null,null,null,null,"(select)",null,"(select)",null,null,"(select)","(select)"]
[null,null,null,null,null,"(select)",null,"(select)",null,null,"(select)","(select)"]
[null,null,null,null,null,"(select)",null,"(select)",null,null,"(select)","(select)"]
[null,null,null,null,null,"(select)",null,"(select)",null,null,"(select)","(select)"]
[null,null,null,null,null,"(select)",null,"(select)",null,null,"(select)","(select)"]
[null,null,null,null,null,"(select)",null,"(select)",null,null,"(select)","(select)"]
[null,null,null,null,null,"(select)",null,"(select)",null,null,"(select)","(select)"]
[null,null,null,null,null,"(select)",null,"(select)",null,null,"(select)","(select)"]
[null,null,null,null,null,"(select)",null,"(select)",null,null,"(select)","(select)"]
[null,null,null,null,null,"(select)",null,"(select)",null,null,"(select)","(select)"]
[null,null,null,null,null,"(select)",null,"(select)",null,null,"(select)","(select)"]
[null,null,null,null,null,"(select)",null,"(select)",null,null,"(select)","(select)"]
[null,null,null,null,null,"(select)",null,"(select)",null,null,"(select)","(select)"]
[null,null,null,null,null,"(select)",null,"(select)",null,null,"(select)","(select)"]
[null,null,null,null,null,"(select)",null,"(select)",null,null,"(select)","(select)"]
[null,null,null,null,null,"(select)",null,"(select)",null,null,"(select)","(select)"]
[null,null,null,null,null,"(select)",null,"(select)",null,null,"(select)","(select)"]
[null,null,null,null,null,"(select)",null,"(select)",null,null,"(select)","(select)"]
[null,null,null,null,null,"(select)",null,"(select)",null,null,"(select)","(select)"]
[null,null,null,null,null,"(select)",null,"(select)",null,null,"(select)","(select)"]
[null,null,null,null,null,"(select)",null,"(select)",null,null,"(select)","(select)"]
[null,null,null,null,null,"(select)",null,"(select)",null,null,"(select)","(select)"]
[null,null,null,null,null,"(select)",null,"(select)",null,null,"(select)","(select)"]
[null,null,null,null,null,"(select)",null,"(select)",null,null,"(select)","(select)"]
[null,null,null,null,null,"(select)",null,"(select)",null,null,"(select)","(select)"]
[null,null,null,null,null,"(select)",null,"(select)",null,null,"(select)","(select)"]
[null,null,null,null,null,"(select)",null,"(select)",null,null,"(select)","(select)"]
[null,null,null,null,null,"(select)",null,"(select)",null,null,"(select)","(select)"]
[null,null,null,null,null,"(select)",null,"(select)",null,null,"(select)","(select)"]
[null,null,null,null,null,"(select)",null,"(select)",null,null,"(select)","(select)"]
[null,null,null,null,null,"(select)",null,"(select)",null,null,"(select)","(select)"]
[null,null,null,null,null,"(select)",null,"(select)",null,null,"(select)","(select)"]
[null,null,null,null,null,"(select)",null,"(select)",null,null,"(select)","(select)"]
[null,null,null,null,null,"(select)",null,"(select)",null,null,"(select)","(select)"]
[null,null,null,null,null,"(select)",null,"(select)",null,null,"(select)","(select)"]
[null,null,null,null,null,"(select)",null,"(select)",null,null,"(select)","(select)"]
[null,null,null,null,null,"(select)",null,"(select)",null,null,"(select)","(select)"]
[null,null,null,null,null,"(select)",null,"(select)",null,null,"(select)","(select)"]
[null,null,null,null,null,"(select)",null,"(select)",null,null,"(select)","(select)"]
[null,null,null,null,null,"(select)",null,"(select)",null,null,"(select)","(select)"]
[null,null,null,null,null,"(select)",null,"(select)",null,null,"(select)","(select)"]
[null,null,null,null,null,"(select)",null,"(select)",null,null,"(select)","(select)"]
[null,null,null,null,null,"(select)",null,"(select)",null,null,"(select)","(select)"]
[null,null,null,null,null,"(select)",null,"(select)",null,null,"(select)","(select)"]
[null,null,null,null,null,"(select)",null,"(select)",null,null,"(select)","(select)"]
[null,null,null,null,null,"(select)",null,"(select)",null,null,"(select)","(select)"]
[null,null,null,null,null,"(select)",null,"(select)",null,null,"(select)","(select)"]
[null,null,null,null,null,"(select)",null,"(select)",null,null,"(select)","(select)"]
[null,null,null,null,null,"(select)",null,"(select)",null,null,"(select)","(select)"]
[null,null,null,null,null,"(select)",null,"(select)",null,null,"(select)","(select)"]
[null,null,null,null,null,"(select)",null,"(select)",null,null,"(select)","(select)"]
[null,null,null,null,null,"(select)",null,"(select)",null,null,"(select)","(select)"]
[null,null,null,null,null,"(select)",null,"(select)",null,null,"(select)","(select)"]
[null,null,null,null,null,"(select)",null,"(select)",null,null,"(select)","(select)"]
[null,null,null,null,null,"(select)",null,"(select)",null,null,"(select)","(select)"]
[null,null,null,null,null,"(select)",null,"(select)",null,null,"(select)","(select)"]
[null,null,null,null,null,"(select)",null,"(select)",null,null,"(select)","(select)"]
[null,null,null,null,null,"(select)",null,"(select)",null,null,"(select)","(select)"]
[null,null,null,null,null,"(select)",null,"(select)",null,null,"(select)","(select)"]
[null,null,null,null,null,"(select)",null,"(select)",null,null,"(select)","(select)"]
[null,null,null,null,null,"(select)",null,"(select)",null,null,"(select)","(select)"]
[null,null,null,null,null,"(select)",null,"(select)",null,null,"(select)","(select)"]
[null,null,null,null,null,"(select)",null,"(select)",null,null,"(select)","(select)"]
[null,null,null,null,null,"(select)",null,"(select)",null,null,"(select)","(select)"]
[null,null,null,null,null,"(select)",null,"(select)",null,null,"(select)","(select)"]
[null,null,null,null,null,"(select)",null,"(select)",null,null,"(select)","(select)"]
[null,null,null,null,null,"(select)",null,"(select)",null,null,"(select)","(select)"]
[null,null,null,null,null,"(select)",null,"(select)",null,null,"(select)","(select)"]
[null,null,null,null,null,"(select)",null,"(select)",null,null,"(select)","(select)"]
[null,null,null,null,null,"(select)",null,"(select)",null,null,"(select)","(select)"]
[null,null,null,null,null,"(select)",null,"(select)",null,null,"(select)","(select)"]
[null,null,null,null,null,"(select)",null,"(select)",null,null,"(select)","(select)"]
[null,null,null,null,null,"(select)",null,"(select)",null,null,"(select)","(select)"]
[null,null,null,null,null,"(select)",null,"(select)",null,null,"(select)","(select)"]
[null,null,null,null,null,"(select)",null,"(select)",null,null,"(select)","(select)"]
[null,null,null,null,null,"(select)",null,"(select)",null,null,"(select)","(select)"]
[null,null,null,null,null,"(select)",null,"(select)",null,null,"(select)","(select)"]
[null,null,null,null,null,"(select)",null,"(select)",null,null,"(select)","(select)"]
[null,null,null,null,null,"(select)",null,"(select)",null,null,"(select)","(select)"]
[null,null,null,null,null,"(select)",null,"(select)",null,null,"(select)","(select)"]
[null,null,null,null,null,"(select)",null,"(select)",null,null,"(select)","(select)"]
[null,null,null,null,null,"(select)",null,"(select)",null,null,"(select)","(select)"]
[null,null,null,null,null,"(select)",null,"(select)",null,null,"(select)","(select)"]
[null,null,null,null,null,"(select)",null,"(select)",null,null,"(select)","(select)"]

{"sheet":"Option to Assign Payment","index":2,"n_rows":30,"n_cols":33,"rows_kept":30,"cut":false,"hidden":false,"merged":[[15,1,16,32],[9,15,9,17],[9,18,9,23],[9,24,9,26],[9,27,9,32],[11,1,12,32],[20,8,20,31],[21,8,21,32],[20,1,21,7],[17,1,17,32],[18,1,19,7],[18,8,18,16],[18,18,18,27],[18,29,18,31],[19,8,19,16],[19,18,19,27],[19,29,19,31],[26,8,26,32],[25,8,25,31],[25,1,26,7],[29,22,30,31],[23,1,24,7],[23,8,23,16],[23,18,23,27],[23,29,23,31],[24,8,24,16],[24,18,24,27],[24,29,24,31],[29,32,30,32],[29,1,30,3],[29,4,30,9],[29,20,30,21],[27,1,28,5],[27,6,27,15],[27,17,27,24],[27,26,27,27],[27,29,27,31],[28,6,28,12]]}
[]
[null,"Existing Multifamily Standard Incentives ¾ NW Natural Washington"]
[null,"Commercial Buildings | Option to Assign Payment | Form 120P-WA-EMF"]
[]
[null,"To be completed by Participant"]
[]
[null,"TRC is a Program Management Contractor for Energy Trust of Oregon."]
[]
[null,null,null,null,null,null,null,null,null,null,null,null,null,null,null,"Program Use Only",null,null,null,null,null,null,null,null,null,null,null,null,null,null,null,null,{"$f":"Version","v":"v2024.2"}]
[null,null,null,null,null,null,null,null,null,null,null,null,null,null,null,"Reference ID",null,null,{"$f":"IF(ReferenceID=\"\",\"\",ReferenceID)","v":""},null,null,null,null,null,"PT ID",null,null,{"$f":"IF(PTID=\"\",\"\",PTID)","v":""}]
[]
[null,"Option to Assign Incentive Payment\nPLEASE NOTE: The Energy Trust incentive payment will be made to Participant unless Participant and its designated Payee complete the section below to assign the payment to Payee. An IRS Form W-9 (Request for Taxpayer Identification Number and Certification) for the Payee named below must be attached if this option is selected."]
[]
[]
[null,"PARTICIPANT AND PAYEE"]
[null,"Both Participant and Payee understand and agree that if this Option to Assign Incentive Payment is selected the incentive check will be issued to the Payee named below at the address listed below and Energy Trust is not responsible for any tax liabilities that may be associated with the incentive payment. In addition, Participant understands that, notwithstanding this assignment, responsibility for complying with the terms and conditions of this incentive agreement shall continue to be the obligation of Participant, and Energy Trust's sole responsibility under this incentive agreement shall be to Participant. Accordingly, Payee understands that it shall have no rights against Energy Trust or the PMC with respect to such assignment or the payment of the incentive, and in the event that Energy Trust does not pay the incentive as a result of Participant's failure to comply with this agreement, Payee's sole recourse shall be against Participant. Participant directs Energy Trust to pay any incentive to which it is entitled to the Payee named below and waives all rights to directly receive the Energy Trust incentives for the identified energy-efficiency project. "]
[]
[null,"SIGNATURES: By my signature below, I represent to Energy Trust that I have read this agreement and am duly authorized to sign this Option to Assign Incentive Payment on behalf of the party for whom I am signing."]
[null,"On behalf of Participant\n(Authorized Representative)"]
[null,null,null,null,null,null,null,null,"(printed)",null,null,null,null,null,null,null,null,null,"(signature)",null,null,null,null,null,null,null,null,null,null,"Date"]
[null,"Participant",null,null,null,null,null,null,{"$f":"IF(BusinessName=\"\",\"\",BusinessName)","v":" "}]
[null,null,null,null,null,null,null,null,"(Legal business name as shown on W-9)"]
[]
[null,"On behalf of Payee\n(Authorized Representative)"]
[null,null,null,null,null,null,null,null,"(printed)",null,null,null,null,null,null,null,null,null,"(signature)",null,null,null,null,null,null,null,null,null,null,"Date"]
[null,"Payee Name\n"]
[null,null,null,null,null,null,null,null,"(Must match submitted IRS Form W-9)"]
[null,"Mailing Address\n (for check)"]
[null,null,null,null,null,null,"Street",null,null,null,null,null,null,null,null,null,null,"City",null,null,null,null,null,null,null,null,"State",null,null,"Zip"]
[null,"Phone",null,null,null,null,null,null,null,null,null,null,null,null,null,null,null,null,null,null,"Email"]

{"sheet":"HVAC & Water Heating Equipment","index":3,"n_rows":78,"n_cols":18,"rows_kept":78,"cut":false,"hidden":false,"merged":[[76,1,77,15],[63,2,63,13],[48,2,48,13],[49,2,49,13],[54,2,54,13],[56,2,56,13],[65,2,65,13],[60,2,60,13],[64,2,64,13],[57,2,57,13],[59,2,59,13],[55,2,55,13],[50,2,50,3],[51,2,51,3],[66,2,66,13],[49,1,57,1],[10,2,10,13],[17,2,17,13],[26,2,26,13],[25,2,25,13],[18,2,18,13],[11,1,14,1],[11,2,11,13],[11,14,11,17],[12,2,12,13],[13,2,13,13],[14,2,14,13],[26,16,29,16],[26,17,29,17],[28,11,28,13],[38,2,38,13],[37,2,37,13],[35,2,35,13],[36,2,36,13],[30,2,30,13],[17,1,18,1],[18,14,18,17],[19,2,22,13],[19,1,24,1],[19,14,24,14],[19,15,24,15],[19,16,24,16],[19,17,24,17],[26,1,29,1],[27,2,27,13],[28,7,28,10],[26,14,29,14],[26,15,29,15],[52,2,52,6],[44,2,44,13],[41,2,41,13],[42,2,42,13],[43,2,43,13],[52,7,52,12],[60,17,62,17],[60,1,62,1],[60,14,62,14],[60,15,62,15],[60,16,62,16],[61,2,61,4],[62,2,62,4],[39,14,40,17],[40,4,40,5],[39,1,43,1],[39,2,39,13],[46,2,46,3],[45,2,45,13],[40,2,40,3],[46,4,46,6],[15,1,16,1],[15,2,16,13],[67,14,67,17],[67,1,72,1],[72,2,72,13],[71,2,71,13],[70,2,70,13],[69,2,69,13],[68,2,68,13],[67,2,67,13],[44,17,47,17],[44,16,47,16],[44,14,47,14],[44,15,47,15],[37,1,38,1],[44,1,47,1]]}
[]
[null,"Existing Multifamily Standard Incentives ¾ NW Natural Washington"]
[null,"Commercial Buildings | Incentive Application | Form 120P-WA-EMF"]
[]
[null,"To be completed by Participant"]
[]
[null,"TRC is a Program Management Contractor for Energy Trust of Oregon.",null,null,null,null,null,null,null,null,null,null,null,null,"Program Use Only",null,null,{"$f":"Version","v":"v2024.2"}]
[null,null,null,null,null,null,null,null,null,null,null,null,null,null,"Reference ID",{"$f":"IF(ReferenceID=\"\",\"\",ReferenceID)","v":""},"PTID",{"$f":"IF(PTID=\"\",\"\",PTID)","v":""}]
[]
[null,"HVAC and Water Heating"]
[null,"EQUIPMENT","REQUIREMENTS",null,null,null,null,null,null,null,null,null,null,null,"INCENTIVE PER UNIT","QUANTITY","INCENTIVE TOTAL","INSTALLED COST"]
[null,"Condensing Gas Furnace"]
[null,null,"91% efficiency rating",null,null,null,null,null,null,null,null,null,null,null,8.25,null,{"$f":"O13*P13","v":0},0]
[null,null,"95% efficiency rating",null,null,null,null,null,null,null,null,null,null,null,8.25,null,0,0]
[null,null,"98% efficiency rating",null,null,null,null,null,null,null,null,null,null,null,8.25,null,0,0]
[null,"Smart Thermostat",null,null,null,null,null,null,null,null,null,null,null,null,100,null,0]
[null,null,null,null,null,null,null,null,null,null,null,null,null,null,230,null,0]
[null,"New Rooftop Unit (RTU) with Demand Control Ventilation (DCV)",null,null,null,null,null,null,null,null,null,null,null,null,29,null,0,0]
[null,null,"*Describe the space that the RTU will serve:\n (contact Energy Trust for eligible space types)"]
[null,"Advanced Rooftop Controls (ARC) -\nFull Retrofit",null,null,null,null,null,null,null,null,null,null,null,null,300,null,{"$f":"O20*P20","v":0}]
[]
[]
[]
[]
[]
[null,"Commercial Condensing Tank Water Heater",null,null,null,null,null,null,null,null,null,null,null,null,3.5,null,{"$f":"O26*P26","v":0},0]
[null,"Condensing\nTankless Water\nHeater\nunder 200\nkBtu/h input",null,null,null,null,null,null,null,null,null,null,null,null,140,null,{"$f":"O27*P27","v":0},0]
[null,null,"Is there an existing water storage tank attached?"]
[null,null,null,null,null,null,null,"If yes, what is the capacity?"]
[]
[null,"Commercial\nCondensing\nTankless Water\nHeater/Boiler at\nleast 200 kBtu/h\ninput",null,null,null,null,null,null,null,null,null,null,null,null,1.4,null,{"$f":"O31*P31","v":0},0]
[]
[]
[]
[null,"HVAC and Water Heating continued"]
[null,"EQUIPMENT","REQUIREMENTS",null,null,null,null,null,null,null,null,null,null,null,"INCENTIVE PER UNIT","QUANTITY","INCENTIVE TOTAL","INSTALLED COST"]
[null,"Tankless Water Heater/Boiler ≥ 200 kBtu/h",null,null,null,null,null,null,null,null,null,null,null,null,1.4,null,{"$f":"O37*P37","v":0},0]
[null,"Gas-fired High Efficiency Condensing HVAC\nBoiler",null,null,null,null,null,null,null,null,null,null,null,null,6.5,null,{"$f":"O38*(P38)","v":0},0]
[null,null,null,null,null,null,null,null,null,null,null,null,null,null,3.75,null,{"$f":"O39*(P39)","v":0},0]
[null,"Domestic Hot Water (DHW) Recirculation Pump Controls"]
[null,null,"Control Type: "]
[null,null,"1/4 horsepower pump or less",null,null,null,null,null,null,null,null,null,null,null,100,null,{"$f":"O42*P42","v":0},0]
[null,null,"≥ 1/6 to ≤ 1/2 horsepower pump",null,null,null,null,null,null,null,null,null,null,null,200,null,0,0]
[null,null,"Greater than 1/4 horsepower pump",null,null,null,null,null,null,null,null,null,null,null,500,null,0,0]
[null,"Steam Trap",null,null,null,null,null,null,null,null,null,null,null,null,350,null,0]
[]
[null,null,"       Trap Size:"]
[]
[null,"Thermostatic Radiator Valve (TRV)",null,null,null,null,null,null,null,null,null,null,null,null,200,null,{"$f":"O49*P49","v":0},0]
[null,"Commercial \nSwimming Pool Heater"]
[null,null,"   Pool Location: "]
[null,null,"   Pool Cover:"]
[null,null,"    Number of heaters serving the pool:"]
[]
[null,null,"Non-condensing Heater, Covered",null,null,null,null,null,null,null,null,null,null,null,0.9,null,{"$f":"O55*P55","v":0},0]
[null,null,"Non-condensing Heater, Not Covered",null,null,null,null,null,null,null,null,null,null,null,1,null,0]
[null,null,"Condensing Heater, Covered",null,null,null,null,null,null,null,null,null,null,null,3,null,0,0]
[null,null,"Condensing Heater, Not Covered",null,null,null,null,null,null,null,null,null,null,null,5,null,0]
[null,"HVAC and Water Heating continued"]
[null,"EQUIPMENT","DESCRIPTION/REQUIREMENTS",null,null,null,null,null,null,null,null,null,null,null,"INCENTIVE PER UNIT","QUANTITY","INCENTIVE TOTAL","INSTALLED COST"]
[null,"Commercial Pool Cover",null,null,null,null,null,null,null,null,null,null,null,null,6,null,{"$f":"O61*P61","v":0},0]
[null,null,"  Pool Location: "]
[null,null,"  Pool Heater Type:"]
[null,"ENERGY STAR® Clothes Washer,\nIn-Unit",null,null,null,null,null,null,null,null,null,null,null,null,30,null,0,0]
[null,"ENERGY STAR Clothes Washer, Laundry Center",null,null,null,null,null,null,null,null,null,null,null,null,45,null,{"$f":"O65*P65","v":0},0]
[null,"ENERGY STAR Commercial Clothes Washer, Common areas",null,null,null,null,null,null,null,null,null,null,null,null,100,null,{"$f":"O66*P66","v":0},0]
[null,"Two-stage Gas Valve on Clothes Dryers",null,null,null,null,null,null,null,null,null,null,null,null,200,null,{"$f":"O67*P67","v":0}]
[null,"Ozone Laundry System at Assisted Living Sites"]
[null,null,"Total laundry capacity is less than 75 lbs:",null,null,null,null,null,null,null,null,null,null,null,5000,null,0]
[null,null,"Total laundry capacity is between 75 and 125 lbs:",null,null,null,null,null,null,null,null,null,null,null,7500,null,0]
[null,null,"Total laundry capacity is between 126 and 400 lbs:",null,null,null,null,null,null,null,null,null,null,null,15000,null,0]
[null,null,"Total laundry capacity is between 401 and 600 lbs:",null,null,null,null,null,null,null,null,null,null,null,25000,null,0]
[null,null,"Total laundry capacity is greater than 600 lbs:",null,null,null,null,null,null,null,null,null,null,null,30000,null,0]
[]
[]
[null,"HVAC and Water Heating continued"]
[null,"TOTALS FOR HVAC AND WATER HEATING",null,null,null,null,null,null,null,null,null,null,null,null,null,null,"TOTAL \nINCENTIVES","TOTAL\nINSTALLED COST"]
[null,null,null,null,null,null,null,null,null,null,null,null,null,null,null,null,{"$f":"SUM(Q13:Q18,Q20,Q26:Q31,Q42:Q49,Q55:Q58,Q37:Q39,Q61:Q67,Q69:Q73)","v":0},{"$f":"SUM(R13:R18,R20,R26:R31,R42:R49,R55:R58,R37:R39,R61:R67,R69:R73)","v":0}]

{"sheet":"Eligible Spaces","index":4,"n_rows":25,"n_cols":1,"rows_kept":25,"cut":false,"hidden":true,"merged":[]}
["(Select)"]
["Arcade"]
["Art classroom"]
["Bank vaults/safe deposit room"]
["Coin-operated Laundromat"]
["Commercial Laundromat"]
["Computer room (without printing)"]
["Copy/printing room"]
["Grocery Store"]
["Guard Stations"]
["Health club/weight room"]
["Hotel Rooms"]
["Library"]
["Main entry lobby"]
["Medical operating room"]
["Medical procedure room"]
["Office spaces"]
["Other"]
["Patient room"]
["Pet shop (animal areas) "]
["Photo studio"]
["Physical therapy"]
["Recovery and ICU area"]
["Sales floor (except mall common areas)"]
["Wood/metal shop"]

{"sheet":"Foodservice Equipment","index":5,"n_rows":36,"n_cols":8,"rows_kept":36,"cut":false,"hidden":false,"merged":[[34,1,35,5],[29,1,31,1],[30,5,31,5],[26,2,26,3],[29,2,29,3],[30,2,31,3],[26,1,28,1],[27,2,28,3],[27,5,28,5],[10,2,10,3],[22,2,22,3],[23,2,23,3],[24,2,24,3],[25,2,25,3],[11,2,11,3],[12,2,12,3],[13,2,15,3],[11,4,12,7],[11,1,21,1],[14,5,15,5],[14,6,15,6],[14,7,15,7],[16,2,18,3],[17,5,18,5],[17,6,18,6],[17,7,18,7],[20,5,21,5],[20,6,21,6],[20,7,21,7],[30,6,31,6],[30,7,31,7],[19,2,21,3],[27,6,28,6],[27,7,28,7]]}
[]
[null,"Existing Multifamily Standard Incentives - NW Natural Washington"]
[null,"Commercial Buildings | Incentive Application | Form 120P-WA-EMF"]
[]
[null,"To be completed by Participant"]
[]
[null,"TRC is a Program Management Contractor for Energy Trust of Oregon.",null,null,"Program Use Only",null,null,{"$f":"Version","v":"v2024.2"}]
[null,null,null,null,"Reference ID",{"$f":"IF(ReferenceID=\"\",\"\",ReferenceID)","v":""},"PTID",{"$f":"IF(PTID=\"\",\"\",PTID)","v":""}]
[]
[null,"Foodservice"]
[null,"EQUIPMENT","REQUIREMENTS",null,"INCENTIVE PER UNIT","QUANTITY","INCENTIVE TOTAL","INSTALLED COST"]
[null,"Gas-fired Automatic Conveyor Broiler"]
[]
[null,null,"Total conveyor belt width less than 20”",null,2500,null,{"$f":"E14*F14","v":0},0]
[null,null,null,null,"Bonus incentive:",null,{"$f":"E16*F15","v":0}]
[null,null,null,null,485]
[null,null,"Total conveyor belt width 20” to 26”",null,3000,null,0,0]
[null,null,null,null,"Bonus incentive:",null,{"$f":"E19 *F18","v":0}]
[null,null,null,null,485]
[null,null,"Total conveyor belt width greater than 26”",null,3500,null,0,0]
[null,null,null,null,"Bonus incentive:",null,{"$f":"E22*F21","v":0}]
[null,null,null,null,575]
[null,"Gas Convection Oven",null,null,315,null,0,0]
[null,"Gas Combination Oven",null,null,750,null,0,0]
[null,"Single Rack Gas Oven",null,null,1500,null,0]
[null,"Double Rack Gas Oven",null,null,2000,null,0,0]
[null,"Gas Steam Cooker",null,null,3400,null,{"$f":"E27*F27","v":0},0]
[null,null,null,null,"Bonus incentive:",null,{"$f":"E29*F28","v":0}]
[null,null,null,null,1000]
[null,"Commercial Vent Hood Retrofit with Demand Controlled Ventilation",null,null,1500,null,0,0]
[null,null,null,null,"Bonus incentive:",null,{"$f":"E32*F31","v":0}]
[null,null,null,null,350]
[]
[]
[null,"TOTALS FOR FOODSERVICE",null,null,null,null,"TOTAL \nINCENTIVES","TOTAL\nINSTALLED COST"]
[null,null,null,null,null,null,{"$f":"SUM(G14:G26,G27:G32)","v":0},{"$f":"SUM(H14:H26,H27:H32)","v":0}]

{"sheet":"Weatherization","index":6,"n_rows":43,"n_cols":10,"rows_kept":43,"cut":false,"hidden":false,"merged":[[10,2,10,5],[14,2,14,5],[15,2,15,5],[12,2,12,3],[13,2,13,3],[41,1,42,7],[28,1,38,1],[33,3,34,5],[37,3,38,5],[29,3,29,5],[33,7,34,7],[37,7,38,7],[35,2,35,5],[36,2,36,5],[27,2,27,5],[28,2,28,5],[32,2,32,5],[21,7,22,7],[37,8,38,8],[28,6,31,9],[37,9,38,9],[33,9,34,9],[33,8,34,8],[21,9,22,9],[21,8,22,8],[21,2,21,5],[19,8,20,8],[19,9,20,9],[11,1,16,1],[11,6,13,9],[11,2,11,5],[16,2,16,5],[17,9,18,9],[17,1,18,1],[17,6,18,6],[17,2,17,5],[17,7,18,7],[17,8,18,8],[19,2,19,5],[21,1,22,1],[21,6,22,6],[19,1,20,1],[19,6,20,6],[19,7,20,7]]}
[]
[null,"Existing Multifamily Standard Incentives - NW Natural Washington"]
[null,"Commercial Buildings | Incentive Application | Form 120P-WA-EMF"]
[]
[null,"To be completed by Participant"]
[]
[null,"TRC is a Program Management Contractor for Energy Trust of Oregon.",null,null,null,null,"Program Use Only",null,null,{"$f":"Version","v":"v2024.2"}]
[null,null,null,null,null,null,"Reference ID",{"$f":"IF(ReferenceID=\"\",\"\",ReferenceID)","v":""},"PTID",{"$f":"IF(PTID=\"\",\"\",PTID)","v":""}]
[]
[null,"Weatherization"]
[null,"EQUIPMENT","REQUIREMENTS4",null,null,null,"INCENTIVE PER UNIT","QUANTITY","INCENTIVE TOTAL","INSTALLED COST"]
[null,"Windows at Stacked Structures"]
[null,null,"Frame Type Replaced: "]
[null,null,"Frame Type Installed:"]
[null,null,"Windows U-Value 0.23 - 0.30",null,null,null,8,null,{"$f":"G15*H15","v":0}]
[null,null,"Windows U-Value 0.22 or lower",null,null,null,12,null,0]
[null,null,"Storm Windows with Emissivity 0.22 or lower, \nSolar Transmittance  greater than 0.55",null,null,null,4,null,0,0]
[null,"Attic/Ceiling Insulation, \nR-11 to R-49",null,null,null,null,0.25,null,{"$f":"G18*H18","v":0},0]
[null,null,"Existing R-Value:",null,"New R-Value:"]
[null,"Floor Insulation, R-11 or less to R-30",null,null,null,null,1.9,null,0]
[null,null,"Existing R-Value:",null,"New R-Value:"]
[null,"Wall Insulation, R-6 or less to R-11",null,null,null,null,0.5,null,0]
[null,null,"Existing R-Value:",null,"New R-Value:"]
[]
[]
[]
[null,"Weatherization continued"]
[null,"EQUIPMENT","REQUIREMENTS4",null,null,null,"INCENTIVE PER UNIT","QUANTITY","INCENTIVE TOTAL","INSTALLED COST"]
[null,"Pipe Insulation  "]
[]
[null,null,"Pipe Diameter:"]
[]
[null,null,"Piping serving domestic hot water",null,null,null,10,null,{"$f":"G33*H33","v":0},0]
[null,null,null,null,null,null,"Bonus incentive:",null,{"$f":"H34*G35","v":0}]
[null,null,null,null,null,null,11]
[null,null,"Piping serving hot water used for space heating",null,null,null,10,null,{"$f":"G36*H36","v":0}]
[null,null,"Piping serving low pressure steam (less than 15 psig)",null,null,null,10,null,0,0]
[null,null,null,null,null,null,"Bonus incentive:",null,{"$f":"H38*G39","v":0}]
[null,null,null,null,null,null,11]
[]
[]
[null,"TOTALS FOR WEATHERIZATION",null,null,null,null,null,null,"TOTAL \nINCENTIVES","TOTAL\nINSTALLED COST"]
[null,null,null,null,null,null,null,null,{"$f":"SUM(I15:I17,I18:I22,I33:I39)","v":0},{"$f":"SUM(J15:J17,J18:J22,J33:J39)","v":0}]

{"sheet":"Admin Tools","index":7,"n_rows":0,"n_cols":0,"rows_kept":0,"cut":false,"hidden":false,"merged":[]}

{"sheet":"Lookups","index":8,"n_rows":54,"n_cols":2,"rows_kept":54,"cut":false,"hidden":true,"merged":[]}
["Heat"]
[0,"None"]
[1,"Electric"]
[2,"Gas"]
[3,"Other"]
[]
[]
["Building Use Type"]
["(select)"]
["Assembly"]
["Athletic Club"]
["Auto Services"]
["College/University"]
["Data Center"]
["Grocery"]
["Hospital"]
["Laundry / Dry Cleaners"]
["Lodging / Hotel / Motel"]
["Manufacturing"]
["Multifamily / Residential"]
["Office"]
["Other"]
["Parking Structure"]
["Religious / Spiritual"]
["Restaurant"]
["Retail"]
["Retirement Home"]
["Schools K-12"]
["Warehouse"]
[]
[]
["Electric Utility"]
["(select)"]
["PGE"]
["Pacific Power"]
["Other"]
[]
["Gas Utility"]
["(select)"]
["NWN"]
["Other"]
[]
["Fuel Source"]
["(select)"]
["Electricity"]
["Gas"]
["Other"]
[]
["Project Type"]
[1,"Existing Buildings"]
[2,"New Buildings"]
[3,"Existing Multifamily Buildings"]
[4,"New Multifamily Buildings"]
[5,"Greenhouses"]